bitfinex/quotes_BTCUSD_20250428
["timestamp","ask_amount","ask_price","bid_price","bid_amount"]
[1745840059072,0.00011016,95511.0,95496.0,0.01047164]
[1745840059239,0.00011016,95511.0,95497.0,0.00209403]
[1745840059440,0.00011016,95511.0,95497.0,0.01281449]
[1745840059640,0.00011016,95511.0,95502.0,0.002]
[1745840060473,0.00011016,95511.0,95502.0,0.00993637]
[1745840060839,0.00011016,95511.0,95502.0,0.01193637]
[1745840062810,0.00011016,95511.0,95502.0,0.02240735]
[1745840062981,0.00011016,95511.0,95502.0,0.01193637]
[1745840063810,0.00011016,95511.0,95502.0,0.00793637]
[1745840064012,0.00111016,95511.0,95502.0,0.004]
[1745840064269,0.00211016,95511.0,95502.0,0.006]
[1745840064471,0.00211016,95511.0,95502.0,0.01647098]
[1745840064688,0.00211016,95511.0,95502.0,0.006]
[1745840064903,0.00211016,95511.0,95502.0,0.01381857]
[1745840065111,0.00211016,95511.0,95502.0,0.006]
[1745840066926,0.00211016,95511.0,95503.0,0.01047087]
[1745840067097,0.00211016,95511.0,95506.0,0.21988044]
[1745840067300,0.00211016,95511.0,95503.0,0.21988782]
[1745840067474,0.00211016,95511.0,95502.0,0.22589045]
[1745840068044,0.00111016,95511.0,95503.0,0.01047087]
[1745840068583,0.00111016,95511.0,95502.0,0.02246909]
[1745840068836,0.00011016,95511.0,95503.0,0.01047087]
[1745840069035,0.00011016,95511.0,95502.0,0.01846909]
[1745840069212,0.00011016,95511.0,95503.0,0.003]
[1745840069412,0.00011016,95511.0,95506.0,0.002]
[1745840069891,0.00011016,95511.0,95502.0,0.01099811]
[1745840070064,0.00011016,95511.0,95502.0,0.00799811]
[1745840070273,0.00220427,95511.0,95502.0,0.002]
[1745840070686,0.00220427,95511.0,95499.0,0.01256534]
[1745840070887,0.00220427,95511.0,95503.0,0.003]
[1745840071041,0.00011016,95511.0,95506.0,0.002]
[1745840072463,0.00011016,95511.0,95502.0,0.01092194]
[1745840072864,0.00011016,95511.0,95502.0,0.00792194]
[1745840073093,0.00011016,95511.0,95502.0,0.01047098]
[1745840073412,0.00011016,95511.0,95502.0,0.21989058]
[1745840073786,0.00011016,95511.0,95502.0,0.01347098]
[1745840073967,0.00011016,95511.0,95506.0,0.002]
[1745840075491,0.00011016,95511.0,95506.0,0.003]
[1745840075693,0.00011016,95511.0,95507.0,0.08856]
[1745840076716,0.01956149,95510.0,95507.0,0.08856]
[1745840077123,0.01956149,95510.0,95507.0,0.09156]
[1745840077274,0.01956149,95509.0,95507.0,0.09356]
[1745840077898,0.01956149,95508.0,95507.0,0.09356]
[1745840078331,0.01956149,95508.0,95507.0,0.09056]
[1745840078530,0.01956149,95508.0,95507.0,0.08856]
[1745840078751,0.06706149,95508.0,95507.0,0.09456]
[1745840078935,0.22571128,95508.0,95507.0,0.09156]
[1745840079135,0.21895163,95508.0,95507.0,0.09156]
[1745840079335,0.22630014,95508.0,95507.0,0.09256]
[1745840079555,0.22630014,95508.0,95507.0,0.09556]
[1745840084755,0.22630014,95508.0,95507.0,0.007]
[1745840085040,0.22630014,95508.0,95507.0,0.09556]
[1745840093255,0.22629811,95508.0,95507.0,0.09556]
[1745840095925,0.22629811,95508.0,95507.0,0.007]
[1745840096273,0.22629811,95508.0,95507.0,0.09628]
[1745840104767,0.22629811,95508.0,95507.0,0.41044]
[1745840105476,0.18129811,95508.0,95507.0,0.41044]
[1745840107031,0.18339222,95508.0,95507.0,0.32116]
[1745840107233,0.18339222,95508.0,95507.0,0.41044]
[1745840107965,0.18129811,95508.0,95507.0,0.41044]
[1745840108183,0.39279876,95508.0,95507.0,0.41044]
[1745840108387,0.78060465,95508.0,95507.0,0.41044]
[1745840108684,0.81000325,95508.0,95507.0,0.41044]
[1745840109229,0.81000325,95508.0,95507.0,0.40744]
[1745840109471,0.81000325,95508.0,95507.0,0.40344]
[1745840109672,0.81200325,95508.0,95507.0,0.40344]
[1745840109876,0.81300325,95508.0,95507.0,0.40344]
[1745840110275,0.91989339,95508.0,95507.0,0.40344]
[1745840114201,0.81300325,95508.0,95507.0,0.40344]
[1745840114736,0.55369671,95508.0,95507.0,0.40344]
[1745840114913,0.18429811,95508.0,95507.0,0.40344]
[1745840115332,0.17772011,95508.0,95507.0,0.40344]
[1745840115909,0.17981422,95508.0,95507.0,0.40344]
[1745840117156,0.38922076,95508.0,95507.0,0.40344]
[1745840117502,0.38712665,95508.0,95507.0,0.40344]
[1745840118842,0.38712665,95508.0,95507.0,0.31416]
[1745840119034,0.38712665,95508.0,95507.0,0.40348]
[1745840120040,0.38712665,95508.0,95507.0,0.39982218]
[1745840122147,0.38713001,95508.0,95507.0,0.39982218]
[1745840123867,0.17772347,95508.0,95507.0,0.39982218]
[1745840124442,0.13022347,95508.0,95507.0,0.39982218]
[1745840124919,0.02333333,95508.0,95507.0,0.39982218]
[1745840125316,0.02133333,95508.0,95507.0,0.39982218]
[1745840125709,0.02033333,95508.0,95507.0,0.39982218]
[1745840126511,0.02033333,95508.0,95507.0,0.44712218]
[1745840126664,0.02133333,95508.0,95507.0,0.39982218]
[1745840127385,0.02033333,95508.0,95507.0,0.39982218]
[1745840127564,0.02033333,95508.0,95507.0,0.40282218]
[1745840127761,0.02033333,95508.0,95507.0,0.40582218]
[1745840128178,0.02033333,95508.0,95507.0,0.40282218]
[1745840128390,0.02016121,95508.0,95507.0,0.40682218]
[1745840131507,0.02016121,95508.0,95507.0,0.41885368]
[1745840134559,0.02016121,95508.0,95507.0,0.41821368]
[1745840138166,0.22956775,95508.0,95507.0,0.41821368]
[1745840138376,0.38175789,95508.0,95507.0,0.41821368]
[1745840138548,0.38175789,95508.0,95507.0,0.32953368]
[1745840138723,0.17235135,95508.0,95507.0,0.40618218]
[1745840138919,0.17444546,95508.0,95507.0,0.41828187]
[1745840139159,0.17444546,95508.0,95507.0,0.41428187]
[1745840139381,0.17235135,95508.0,95507.0,0.41128187]
[1745840139586,0.383852,95508.0,95507.0,0.41328187]
[1745840139819,0.38175789,95508.0,95507.0,0.41428187]
[1745840140025,0.17235135,95508.0,95507.0,0.41428187]
[1745840140222,0.17444546,95508.0,95507.0,0.41428187]
[1745840141314,0.12914546,95508.0,95507.0,0.40218218]
[1745840141535,0.02016121,95508.0,95507.0,0.4143249]
[1745840142381,0.02016121,95508.0,95507.0,0.3256449]
[1745840142523,0.02016121,95508.0,95507.0,0.4143249]
[1745840148663,0.01998509,95508.0,95507.0,0.4143249]
[1745840152056,0.17607523,95508.0,95507.0,0.4143249]
[1745840152370,0.17816934,95508.0,95507.0,0.4143249]
[1745840153231,0.17607523,95508.0,95507.0,0.40218218]
[1745840153458,0.01998509,95508.0,95507.0,0.31350218]
[1745840153654,0.01998509,95508.0,95507.0,0.46476667]
[1745840153994,0.01998509,95508.0,95507.0,0.37556667]
[1745840154196,0.01998509,95508.0,95507.0,0.46376667]
[1745840154401,0.01998509,95508.0,95507.0,0.46176667]
[1745840154596,0.01998509,95508.0,95507.0,0.46376667]
[1745840155194,0.01998509,95508.0,95507.0,0.46176667]
[1745840155482,0.01998509,95508.0,95507.0,0.46576667]
[1745840156014,0.01981097,95508.0,95507.0,0.46576667]
[1745840157248,0.01981097,95508.0,95507.0,0.46776667]
[1745840160232,0.01981097,95508.0,95507.0,0.32866667]
[1745840160436,0.01981097,95508.0,95507.0,0.41786667]
[1745840160632,0.01981097,95508.0,95507.0,0.32866667]
[1745840160861,0.01981097,95508.0,95507.0,0.41786667]
[1745840164010,0.12670111,95508.0,95507.0,0.41786667]
[1745840164200,0.12670111,95508.0,95507.0,0.32866667]
[1745840164406,0.38760176,95508.0,95507.0,0.41786667]
[1745840164604,0.72550765,95508.0,95507.0,0.41786667]
[1745840165379,0.51610111,95508.0,95507.0,0.41786667]
[1745840165587,0.72550765,95508.0,95507.0,0.41786667]
[1745840165784,0.51610111,95508.0,95507.0,0.41786667]
[1745840166338,0.72550765,95508.0,95507.0,0.41786667]
[1745840166540,0.72550765,95508.0,95507.0,0.40570218]
[1745840166892,0.72550765,95508.0,95507.0,0.41783278]
[1745840168848,0.72538456,95508.0,95507.0,0.41783278]
[1745840172697,0.75477958,95508.0,95507.0,0.41783278]
[1745840172897,0.86166972,95508.0,95507.0,0.41783278]
[1745840173100,0.75477958,95508.0,95507.0,0.41783278]
[1745840173306,0.75477958,95508.0,95507.0,0.40570218]
[1745840173671,0.75477958,95508.0,95507.0,0.41783647]
[1745840177462,0.72538456,95508.0,95507.0,0.41783647]
[1745840180689,0.71304652,95508.0,95507.0,0.41783647]
[1745840181141,0.71304652,95508.0,95507.0,0.32863647]
[1745840181486,0.71304652,95508.0,95507.0,0.40570218]
[1745840181914,0.71304652,95508.0,95507.0,0.41790478]
[1745840183699,0.50363998,95508.0,95507.0,0.41790478]
[1745840184811,0.71304652,95508.0,95507.0,0.41790478]
[1745840186044,0.71304652,95508.0,95507.0,0.41794478]
[1745840187146,0.82142401,95508.0,95507.0,0.0182026]
[1745840187329,0.89254074,95508.0,95507.0,0.40123847]
[1745840187552,0.7977041,95508.0,95507.0,0.40123847]
[1745840187851,0.79770132,95508.0,95507.0,0.41151148]
[1745840187996,0.80504759,95508.0,95507.0,0.41151148]
[1745840188443,0.7756838,95508.0,95507.0,0.41151148]
[1745840188643,0.88557394,95508.0,95507.0,0.41151148]
[1745840188845,0.91493483,95508.0,95507.0,0.41151148]
[1745840189238,0.91793483,95508.0,95507.0,0.41151148]
[1745840189599,0.91793483,95508.0,95507.0,0.39680148]
[1745840189821,0.91793483,95508.0,95507.0,0.36670149]
[1745840190541,0.91893483,95508.0,95507.0,0.36670149]
[1745840190753,1.32953483,95508.0,95507.0,0.36670149]
[1745840190916,1.30017394,95508.0,95507.0,0.24730149]
[1745840191115,1.30017394,95508.0,95507.0,0.27935579]
[1745840191299,1.30017394,95508.0,95507.0,0.21671408]
[1745840191510,1.30017394,95508.0,95507.0,0.13534538]
[1745840191863,1.30017394,95508.0,95507.0,0.08297668]
[1745840192067,1.30017394,95508.0,95507.0,0.07412943]
[1745840192275,0.61386493,95500.0,95499.0,0.31424]
[1745840192407,0.71975507,95500.0,95499.0,0.40348]
[1745840192810,0.72710134,95500.0,95499.0,0.40348]
[1745840193742,0.72810134,95500.0,95499.0,0.40348]
[1745840194368,1.29479148,95500.0,95499.0,0.40352]
[1745840194602,1.32624948,95500.0,95499.0,0.40352]
[1745840195027,1.32624948,95500.0,95499.0,0.41387479]
[1745840195225,1.32624948,95500.0,95499.0,0.17109569]
[1745840195451,1.32624948,95500.0,95499.0,0.1607409]
[1745840195900,1.32624948,95500.0,95499.0,0.13095091]
[1745840196789,0.60722982,95485.0,95484.0,0.31424]
[1745840197003,0.71411996,95485.0,95484.0,0.40352]
[1745840197222,0.72866081,95485.0,95484.0,0.40352]
[1745840197441,0.73600708,95485.0,95484.0,0.17475449]
[1745840197693,0.73600708,95485.0,95484.0,0.16432406]
[1745840197921,0.89009722,95485.0,95484.0,0.16432406]
[1745840198633,0.89109722,95485.0,95484.0,0.16432406]
[1745840198862,0.89109722,95485.0,95452.0,0.0008494]
[1745840198863,0.01047438,95471.0,95468.0,0.00027025]
[1745840199092,0.01047504,95465.0,95462.0,0.31424]
[1745840199310,0.34,95463.0,95462.0,0.31424]
[1745840199557,0.44689014,95463.0,95462.0,0.40352]
[1745840199790,0.65639539,95463.0,95462.0,0.40342731]
[1745840200226,0.65639539,95463.0,95462.0,0.41400709]
[1745840200416,0.65651024,95463.0,95462.0,0.41400709]
[1745840200622,0.66385651,95463.0,95462.0,0.41400709]
[1745840200914,0.66485651,95463.0,95462.0,0.41600709]
[1745840201136,0.66485651,95463.0,95462.0,0.10185978]
[1745840201137,0.80537386,95463.0,95462.0,0.10185978]
[1745840201551,0.80537386,95463.0,95462.0,0.09128]
[1745840201757,0.80637386,95463.0,95462.0,0.09328]
[1745840201971,0.80637386,95463.0,95462.0,0.09318733]
[1745840202219,0.78471679,95463.0,95462.0,0.09118733]
[1745840202612,0.78471679,95463.0,95462.0,0.08928]
[1745840202815,0.78571679,95463.0,95462.0,0.09128]
[1745840202990,0.89260693,95463.0,95462.0,0.09128]
[1745840203720,0.78571679,95463.0,95462.0,0.09128]
[1745840203918,0.78571679,95463.0,95462.0,0.002]
[1745840204150,0.78571679,95463.0,95452.0,0.0008494]
[1745840204151,0.61306805,95453.0,95452.0,0.0008494]
[1745840204355,0.71995819,95453.0,95452.0,0.08928]
[1745840204526,0.5640878,95444.0,95443.0,0.31428]
[1745840204753,1.08157794,95444.0,95443.0,0.40356]
[1745840204958,1.08892421,95444.0,95443.0,0.4142894]
[1745840205794,1.13462421,95444.0,95443.0,0.4142894]
[1745840207037,1.13562421,95444.0,95443.0,0.4152894]
[1745840207242,1.13562421,95444.0,95443.0,0.4162894]
[1745840210776,1.13562421,95444.0,95443.0,0.4012894]
[1745840212851,1.16709721,95444.0,95443.0,0.4012894]
[1745840214233,1.16688106,95444.0,95443.0,0.4012894]
[1745840215030,1.16688106,95444.0,95443.0,0.3120094]
[1745840215219,1.16688106,95444.0,95443.0,0.4012894]
[1745840215422,1.16688106,95444.0,95443.0,0.39056]
[1745840215735,1.16688106,95444.0,95443.0,0.40156867]
[1745840218102,1.2737712,95444.0,95443.0,0.40156867]
[1745840218632,1.16688106,95444.0,95443.0,0.40156867]
[1745840219232,1.16675697,95444.0,95443.0,0.40156867]
[1745840228147,1.10651612,95444.0,95443.0,0.40156867]
[1745840228347,0.89730941,95444.0,95443.0,0.40156867]
[1745840229132,0.86583641,95444.0,95443.0,0.40156867]
[1745840229326,0.89730441,95444.0,95443.0,0.40156867]
[1745840230268,0.48670441,95444.0,95443.0,0.40156867]
[1745840231222,0.69625136,95444.0,95443.0,0.40156867]
[1745840232023,0.69625136,95444.0,95443.0,0.39056]
[1745840232389,0.69625136,95444.0,95443.0,0.4014042]
[1745840235667,0.72566194,95444.0,95443.0,0.4014042]
[1745840236429,0.69625136,95444.0,95443.0,0.4014042]
[1745840237500,0.11523641,95444.0,95443.0,0.4014042]
[1745840238090,0.11523641,95444.0,95443.0,0.39056]
[1745840238455,0.11523641,95444.0,95443.0,0.40137088]
[1745840242884,0.11733052,95444.0,95443.0,0.40137088]
[1745840243096,0.32687747,95444.0,95443.0,0.40137088]
[1745840243311,0.11523641,95444.0,95443.0,0.39056]
[1745840243504,0.32687747,95444.0,95443.0,0.30128]
[1745840243737,0.32478336,95444.0,95443.0,0.37136395]
[1745840243910,0.11523641,95444.0,95443.0,0.37136395]
[1745840244113,0.11733052,95444.0,95443.0,0.37136395]
[1745840245108,0.32687747,95444.0,95443.0,0.37136395]
[1745840245423,0.32478336,95444.0,95443.0,0.37136395]
[1745840245781,0.32464927,95444.0,95443.0,0.37136395]
[1745840249908,0.35611727,95444.0,95443.0,0.37136395]
[1745840250944,0.35599318,95444.0,95443.0,0.37136395]
[1745840253815,0.35599318,95444.0,95443.0,0.28208395]
[1745840254014,0.35599318,95444.0,95443.0,0.37116395]
[1745840254216,0.35599318,95444.0,95443.0,0.28208395]
[1745840254217,0.38541771,95444.0,95443.0,0.28208395]
[1745840254439,0.35599318,95444.0,95443.0,0.37116395]
[1745840254645,0.35599318,95444.0,95443.0,0.15398117]
[1745840255180,0.35599318,95444.0,95443.0,0.14317722]
[1745840256696,0.14644623,95444.0,95443.0,0.14317722]
[1745840256895,0.35599318,95444.0,95443.0,0.14317722]
[1745840257186,0.14644623,95444.0,95443.0,0.2000067]
[1745840257459,0.11497823,95444.0,95443.0,0.2000067]
[1745840257687,0.00834627,95444.0,95443.0,0.2000067]
[1745840262427,0.00834627,95444.0,95443.0,0.1540067]
[1745840262428,0.32478336,95444.0,95443.0,0.1540067]
[1745840263022,0.32478336,95444.0,95443.0,0.14317722]
[1745840263608,0.32464126,95444.0,95443.0,0.14317722]
[1745840264038,0.11509431,95444.0,95443.0,0.14317722]
[1745840264250,0.11718842,95444.0,95443.0,0.14317722]
[1745840265134,0.37183537,95444.0,95443.0,0.05409722]
[1745840265341,0.78438173,95444.0,95443.0,0.14317722]
[1745840268277,0.81585473,95444.0,95443.0,0.14317722]
[1745840269915,1.22645473,95444.0,95443.0,0.14317722]
[1745840271173,1.22624559,95444.0,95443.0,0.14317722]
[1745840275549,1.22624559,95444.0,95443.0,0.14217722]
[1745840275776,1.22824559,95444.0,95443.0,0.14317722]
[1745840275970,1.22724559,95444.0,95443.0,0.14217722]
[1745840276386,1.22824559,95444.0,95443.0,0.14317722]
[1745840276951,1.22824559,95444.0,95443.0,0.13977079]
[1745840278400,1.33513573,95444.0,95443.0,0.13977079]
[1745840278643,1.22824559,95444.0,95443.0,0.13977079]
[1745840279246,1.24784647,95444.0,95443.0,0.13977079]
[1745840279889,1.26238732,95444.0,95443.0,0.13977079]
[1745840281501,1.21718732,95444.0,95443.0,0.13977079]
[1745840282297,1.19758644,95444.0,95443.0,0.13977079]
[1745840283089,1.30447658,95444.0,95443.0,0.13977079]
[1745840283858,1.19743233,95444.0,95443.0,0.13977079]
[1745840285294,1.19743233,95444.0,95443.0,0.09108]
[1745840287371,1.13779148,95444.0,95443.0,0.09108]
[1745840287570,1.10835101,95444.0,95443.0,0.09108]
[1745840288853,0.89880406,95444.0,95443.0,0.09108]
[1745840289056,1.10835101,95444.0,95443.0,0.09108]
[1745840291853,0.89880406,95444.0,95443.0,0.002]
[1745840291996,0.89880406,95444.0,95443.0,0.09112]
[1745840292787,1.10835101,95444.0,95443.0,0.09112]
[1745840293399,0.69775101,95444.0,95443.0,0.09112]
[1745840295643,0.48820406,95444.0,95443.0,0.09112]
[1745840296044,0.69775101,95444.0,95443.0,0.09112]
[1745840296629,0.35047789,95439.0,95432.0,0.26602412]
[1745840296852,0.010478,95438.0,95433.0,0.09997658]
[1745840297126,0.010478,95438.0,95434.0,0.08912]
[1745840297274,0.10689014,95439.0,95434.0,0.08912]
[1745840297690,0.10689014,95439.0,95435.0,0.01085289]
[1745840298079,0.00684092,95438.0,95435.0,0.01085289]
[1745840299332,0.00684092,95437.0,95435.0,0.01085289]
[1745840299531,0.00684092,95437.0,95436.0,0.13452]
[1745840299673,0.00684092,95437.0,95436.0,0.18336925]
[1745840299873,0.00684092,95437.0,95436.0,0.19415021]
[1745840300513,0.00784092,95437.0,95436.0,0.19415021]
[1745840300924,0.00884092,95437.0,95436.0,0.19715021]
[1745840301352,0.00784092,95437.0,95436.0,0.19415021]
[1745840301778,0.00868782,95437.0,95436.0,0.10803021]
[1745840301981,0.00868782,95437.0,95436.0,0.19715021]
[1745840302267,0.00768782,95437.0,95436.0,0.19715021]
[1745840302715,0.00868782,95437.0,95436.0,0.19815021]
[1745840304267,0.00868782,95437.0,95436.0,0.10903021]
[1745840304497,0.00868782,95437.0,95436.0,0.10491021]
[1745840304773,0.00868782,95437.0,95436.0,0.40917473]
[1745840304993,0.00868782,95437.0,95436.0,0.40812548]
[1745840305382,0.002,95437.0,95436.0,0.40712548]
[1745840305592,0.001,95437.0,95436.0,0.40712548]
[1745840305783,0.016,95437.0,95436.0,0.40712548]
[1745840306004,0.001,95437.0,95436.0,0.40712548]
[1745840306421,0.015,95437.0,95436.0,0.40712548]
[1745840306627,0.014,95437.0,95436.0,0.40412548]
[1745840307060,0.032,95437.0,95436.0,0.40512548]
[1745840307471,0.014,95437.0,95436.0,0.41494315]
[1745840307899,0.032,95437.0,95436.0,0.41594315]
[1745840308129,0.032,95437.0,95436.0,0.86283329]
[1745840308386,0.00011485,95463.0,95455.0,0.0627]
[1745840308617,0.00011485,95463.0,95456.0,0.09012745]
[1745840308832,0.00011485,95463.0,95456.0,0.10065101]
[1745840309934,0.00011485,95463.0,95456.0,0.10165101]
[1745840311537,0.00011485,95463.0,95456.0,0.10865101]
[1745840312883,0.00011485,95463.0,95460.0,0.01047559]
[1745840313105,0.00011485,95463.0,95462.0,0.29060744]
[1745840313526,0.00011485,95463.0,95462.0,0.3010694]
[1745840314866,0.00011485,95463.0,95462.0,0.3901494]
[1745840315076,0.00211485,95463.0,95462.0,0.3901494]
[1745840315298,0.00211485,95463.0,95462.0,0.14914196]
[1745840315474,0.00211485,95463.0,95462.0,0.35969635]
[1745840315696,0.00211485,95463.0,95462.0,0.3586494]
[1745840317621,0.00211485,95463.0,95462.0,0.36642694]
[1745840319176,0.00211485,95463.0,95462.0,0.1569195]
[1745840319381,0.00211485,95463.0,95462.0,0.15796632]
[1745840319713,0.00211485,95463.0,95462.0,0.36747376]
[1745840319861,0.00211485,95463.0,95462.0,0.36642694]
[1745840321049,0.00211485,95463.0,95462.0,0.31682694]
[1745840321470,0.00211485,95463.0,95462.0,0.09954196]
[1745840321672,0.04981485,95463.0,95462.0,0.09954196]
[1745840321898,0.00211485,95463.0,95462.0,0.09950196]
[1745840323606,0.00211485,95463.0,95462.0,0.3090094]
[1745840328009,0.00211485,95463.0,95462.0,0.6232894]
[1745840334535,0.00194874,95463.0,95462.0,0.6232894]
[1745840334945,0.00929866,95463.0,95462.0,0.41378196]
[1745840335337,0.00929866,95463.0,95462.0,0.32474196]
[1745840335654,0.00929963,95463.0,95462.0,0.41378196]
[1745840336208,0.00929963,95463.0,95462.0,0.6232894]
[1745840336458,0.00194874,95463.0,95462.0,0.6232894]
[1745840338120,0.00194874,95463.0,95462.0,0.63367932]
[1745840341088,0.00194874,95463.0,95462.0,0.6232894]
[1745840343248,0.00194874,95463.0,95462.0,0.63373598]
[1745840343570,0.00194874,95463.0,95462.0,0.63354869]
[1745840343792,0.0004249,95483.0,95482.0,0.20946356]
[1745840344009,0.0004249,95483.0,95482.0,0.30923241]
[1745840344010,0.00052054,95483.0,95482.0,0.30923241]
[1745840344220,0.00052054,95483.0,95482.0,0.30818667]
[1745840344433,0.00052054,95483.0,95482.0,0.09872311]
[1745840344651,0.00052054,95483.0,95482.0,0.09976896]
[1745840344853,0.00052054,95483.0,95482.0,0.30923252]
[1745840345071,0.00052054,95483.0,95482.0,0.10672302]
[1745840345232,0.00052054,95483.0,95482.0,0.10776893]
[1745840345442,0.00052054,95483.0,95482.0,0.31723249]
[1745840345603,0.00052054,95483.0,95482.0,0.10672302]
[1745840345815,0.00852054,95483.0,95482.0,0.1087689]
[1745840347106,0.01738144,95483.0,95482.0,0.1097689]
[1745840347982,0.01738144,95483.0,95482.0,0.31923246]
[1745840348129,0.01738144,95483.0,95482.0,0.10872302]
[1745840348326,0.01738144,95483.0,95482.0,0.10976903]
[1745840350792,0.01738144,95483.0,95482.0,0.02120903]
[1745840350986,0.01738144,95483.0,95482.0,0.10976903]
[1745840353424,0.06648144,95483.0,95482.0,0.10176925]
[1745840353639,0.06648144,95483.0,95482.0,0.10072311]
[1745840354324,0.07382073,95483.0,95482.0,0.10072311]
[1745840357101,0.07382073,95483.0,95482.0,0.01216311]
[1745840357248,0.07382073,95483.0,95482.0,0.10072311]
[1745840357590,0.07382073,95483.0,95482.0,0.10070921]
[1745840359566,0.07382073,95483.0,95482.0,0.01214921]
[1745840359772,0.12356062,95483.0,95482.0,0.09056]
[1745840359944,0.12356062,95483.0,95482.0,0.10071202]
[1745840360100,0.12356062,95483.0,95482.0,0.09056]
[1745840360535,0.43991213,95483.0,95482.0,0.002]
[1745840360740,0.43091213,95483.0,95482.0,0.001]
[1745840361122,0.43091213,95483.0,95482.0,0.08956]
[1745840361357,0.42291213,95483.0,95482.0,0.08856]
[1745840361558,0.42291213,95483.0,95482.0,0.10056]
[1745840361795,0.42391213,95483.0,95482.0,0.10056]
[1745840361962,0.76391213,95483.0,95482.0,0.10056]
[1745840362135,0.76291213,95483.0,95482.0,0.08856]
[1745840362335,0.76391213,95483.0,95482.0,0.09556]
[1745840362623,0.76391213,95483.0,95462.0,0.31428]
[1745840362624,0.87180227,95483.0,95462.0,0.31428]
[1745840362824,0.20950525,95463.0,95462.0,0.31428]
[1745840362939,0.21997801,95465.0,95463.0,0.09882441]
[1745840363148,0.20029014,95464.0,95463.0,0.08856]
[1745840363526,0.20029014,95464.0,95462.0,0.31428]
[1745840363659,0.71746869,95463.0,95462.0,0.31428]
[1745840363856,0.82435883,95463.0,95462.0,0.31428]
[1745840364057,0.82435883,95463.0,95462.0,0.40284]
[1745840364508,0.77990392,95463.0,95462.0,0.40284]
[1745840364710,0.77990392,95463.0,95462.0,0.40784]
[1745840364910,0.79444477,95463.0,95462.0,0.41871837]
[1745840365089,0.79444477,95463.0,95462.0,0.41371837]
[1745840365547,0.79544477,95463.0,95462.0,0.42071837]
[1745840365930,0.84107095,95463.0,95462.0,0.42171837]
[1745840366346,0.79644477,95463.0,95462.0,0.42171837]
[1745840367330,0.79630067,95463.0,95462.0,0.42171837]
[1745840369593,1.20690067,95463.0,95462.0,0.42171837]
[1745840372456,1.20667752,95463.0,95462.0,0.42171837]
[1745840375227,1.20660721,95463.0,95462.0,0.42323837]
[1745840379670,1.18710828,95463.0,95462.0,0.42323837]
[1745840383618,1.18710828,95463.0,95462.0,0.10895837]
[1745840383909,1.17256743,95463.0,95462.0,0.09808]
[1745840384044,1.07596743,95463.0,95462.0,0.09808]
[1745840384269,0.00933929,95463.0,95462.0,0.09808]
[1745840384477,0.002,95463.0,95462.0,0.09808]
[1745840384699,0.10889014,95463.0,95462.0,0.10916007]
[1745840384899,0.10875905,95463.0,95462.0,0.10916007]
[1745840385530,0.11609834,95463.0,95462.0,0.09808]
[1745840386847,0.11609834,95463.0,95462.0,0.10921169]
[1745840388003,0.11609834,95463.0,95462.0,0.09808]
[1745840395591,0.11871719,95463.0,95462.0,0.09808]
[1745840395965,0.11609834,95463.0,95462.0,0.09808]
[1745840397508,0.11591622,95463.0,95462.0,0.09808]
[1745840398294,0.00902608,95463.0,95462.0,0.09808]
[1745840398495,0.00902608,95463.0,95462.0,0.0991276]
[1745840398701,0.00902608,95463.0,95462.0,0.11019294]
[1745840401027,0.00902608,95463.0,95462.0,0.10914534]
[1745840403492,0.00833929,95463.0,95462.0,0.10214534]
[1745840403895,0.00833929,95463.0,95462.0,0.10914534]
[1745840404052,0.00933929,95463.0,95462.0,0.11514534]
[1745840410245,0.00933929,95463.0,95462.0,0.11470534]
[1745840410802,0.00567573,95463.0,95462.0,0.43446292]
[1745840411012,0.00567573,95463.0,95462.0,0.94513099]
[1745840411218,0.002,95463.0,95462.0,0.94513099]
[1745840411438,0.001,95463.0,95462.0,0.93913099]
[1745840411596,0.00022133,95483.0,95482.0,0.30396356]
[1745840411800,0.00022133,95483.0,95482.0,0.39360356]
[1745840411968,0.00022133,95483.0,95482.0,0.40433368]
[1745840413861,0.00022133,95483.0,95482.0,0.40533368]
[1745840414009,0.01522133,95483.0,95482.0,0.40533368]
[1745840414426,0.01922133,95483.0,95482.0,0.40633368]
[1745840415425,0.01922133,95483.0,95482.0,0.40633368]
[1745840415873,0.01922133,95483.0,95482.0,0.17398027]
[1745840416077,0.01922133,95483.0,95482.0,0.17502598]
[1745840416414,0.01922133,95483.0,95482.0,0.38448954]
[1745840416609,0.01922133,95483.0,95482.0,0.38344383]
[1745840421792,0.01922133,95483.0,95482.0,0.36679363]
[1745840422301,0.01922133,95483.0,95482.0,0.36675363]
[1745840422857,0.01910725,95483.0,95482.0,0.36675363]
[1745840424556,0.01910725,95483.0,95482.0,0.31975363]
[1745840424959,0.01462246,95483.0,95482.0,0.31975363]
[1745840426010,0.01462246,95483.0,95482.0,0.31875363]
[1745840426234,0.0004249,95491.0,95490.0,0.20944601]
[1745840426403,0.0004249,95491.0,95490.0,0.21049129]
[1745840426544,0.0004249,95491.0,95490.0,0.21956216]
[1745840426749,0.0004249,95491.0,95490.0,0.21851688]
[1745840428030,0.0154249,95491.0,95490.0,0.22996429]
[1745840428164,0.0154249,95491.0,95490.0,0.27926429]
[1745840428364,0.0264249,95491.0,95490.0,0.28026429]
[1745840430646,0.02623877,95491.0,95490.0,0.28026429]
[1745840431778,0.02623877,95491.0,95490.0,0.32896429]
[1745840432126,0.02623877,95491.0,95490.0,0.33437768]
[1745840432954,0.01523877,95491.0,95490.0,0.87990736]
[1745840433156,0.00023877,95491.0,95490.0,0.87890736]
[1745840433361,0.01123877,95491.0,95490.0,0.88090736]
[1745840433562,0.02423877,95491.0,95490.0,0.88090736]
[1745840433775,0.02423877,95491.0,95490.0,0.87890736]
[1745840433976,0.02523877,95491.0,95490.0,0.87990736]
[1745840434177,0.02523877,95491.0,95490.0,0.79480867]
[1745840434376,0.00023877,95491.0,95490.0,0.79380867]
[1745840434584,0.00823877,95491.0,95490.0,0.79480867]
[1745840434781,0.00823877,95491.0,95490.0,0.88420867]
[1745840435161,0.01823877,95491.0,95490.0,0.88520867]
[1745840437140,0.01823877,95491.0,95490.0,1.29580867]
[1745840437346,0.06709147,95515.0,95514.0,0.20939338]
[1745840437499,0.06709147,95515.0,95514.0,0.61395764]
[1745840437705,0.06709147,95515.0,95514.0,0.62724267]
[1745840438523,0.0771871,95515.0,95514.0,0.62824267]
[1745840439238,0.0861871,95515.0,95514.0,0.62924267]
[1745840439876,0.0861871,95515.0,95514.0,0.41984929]
[1745840440734,0.0935218,95515.0,95514.0,0.41984929]
[1745840442943,0.0935218,95515.0,95514.0,0.42770582]
[1745840443171,0.0935218,95515.0,95514.0,0.41984929]
[1745840443359,0.1420218,95515.0,95514.0,0.41984929]
[1745840443789,0.1420218,95515.0,95514.0,0.33044929]
[1745840443988,0.1420218,95515.0,95514.0,0.41980929]
[1745840444789,0.1420218,95515.0,95514.0,0.33044929]
[1745840444932,0.1420218,95515.0,95514.0,0.41980929]
[1745840445132,0.1420218,95515.0,95514.0,0.33044929]